{"text_format":"1","workbook":"xlsx","n_sheets":2,"sheets":["Sheet2","Sheet1"],"not_rendered":{"charts":0,"images":0,"macros":1,"external_links":0,"defined_names":3,"comments":0,"pivot_tables":0},"unopened":[],"bounds":{"document_bytes":16777216,"sheet_cells":100000,"rows_first":2000,"rows_last":500,"rows_between":2000,"halvings":0,"cell_chars":16384,"cell_head_chars":4096},"cells_cut":0,"cells_raw":0,"read":"whole","date_system":"1900"}

{"sheet":"Sheet2","index":0,"n_rows":146,"n_cols":4,"rows_kept":146,"cut":false,"hidden":false,"merged":[]}
["CD-1001",null,"Come raggio di sol","Caldara"]
["CD-1002",null,"Vittoria, mio core","Carissimi"]
["CD-1003",null,"Sebben, crudele","Caldara"]
["CD-1004",null,"Gia il sole dal Gange","Scarlatti, A."]
["CD-1005",null,"Danza, danza, fanciulla gentile","Durante"]
["CD-1006",null,"Per la Gloria d’adorarvi","Bononcini"]
["CD-1007",null,"Amarilli, mia bella","Caccini"]
["CD-1008",null,"Vergin, tutto amor","Durante"]
["CD-1009",null,"Caro mio ben","Giordani"]
["CD-1010",null,"O cessate di piagarmi","Scarlatti, A."]
["CD-1011",null,"Le violette","Scarlatti, A."]
["CD-1012",null,"O del mio dolce ardor","Gluck"]
["CD-1013",null,"Se tu m’ami, se sospiri","Pergolesi"]
["CD-1014",null,"Tu lo sai","Torelli"]
["CD-1015",null,"Where ‘er You Walk","Handel"]
["CD-1016",null,"Clouds and Darkness","Dvorak"]
["CD-1017",null,"Lord, Thou Art My Refuge","Dvorak"]
["CD-1018",null,"God is My Shepherd","Dvorak"]
["CD-1019",null,"I Will Sing New Songs","Dvorak"]
["CD-1020",null,"Turn Thee To Me","Dvorak"]
["CD-1021",null,"Sing Ye a Joyful Song","Dvorak"]
["CD-1022",null,"Who is Sylvia","Schubert"]
["CD-1023",null,"My Heart Ever Faithful","Bach"]
["CD-1024",null,"Pie Jesu (Blessed Jesus)","Faure"]
["CD-1025",null,"Calm as the Night","Bohm"]
["CD-1026",null,"He Shall Feed His Flock","Handel"]
["CD-1027",null,"Beau Soir","Debussy"]
["CD-1028",null,"Romance","Debussy"]
["CD-1029",null,"Mandoline","Debussy"]
["CD-1030",null,"Nachtviolen","Schubert"]
["CD-1031",null,"Wohin","Schubert"]
["CD-1032",null,"Heidenroslein","Schubert"]
["CD-1033",null,"Wie Melodien Zeicht es Mir","Brahms"]
["CD-1034",null,"Vergebliches Standchen","Brahms"]
["CD-1035",null,"Botschaft","Brahms"]
["CD-1036",null,"May Day Carol","Taylor"]
["CD-1037",null,"Into the Night","Edwards"]
["CD-1038",null,"If No One Ever Marries Me","Lehmann"]
["CD-1039",null,"Widmung (Dedication)","Franz"]
["CD-1040",null,"Sure On This Shining Night","Barber"]
["CD-1041",null,"The Lass From the Low Countree","Niles"]
["CD-1042",null,"My Lord, What a Mornin’","Burleigh"]
["CD-1043",null,"Swing Low, Sweet Chariot","Burleigh"]
["CD-1044",null,"There is a Balm in Gilead","Dawson"]
["CD-1045",null,"Ombra Mai Fu","Handel"]
["CD-1046",null,"My Lovely Celia","Munro-Wilson"]
["CD-1047",null,"Jesus, Jesus, Rest Your Head","Edmunds"]
["CD-1048",null,"Black is the Color of My True ","Shaw"]
["CD-1049",null,"Panis Angelicus","Franck"]
["CD-1050",null,"Du bist die Ruh","Schubert"]
["CD-1051",null,"Les Papillons","Chausson"]
["CD-1052",null,"The Lotus Flower (Die Lotosblume)   ","Schumann"]
["CD-1053",null,"Widmund","Schumann"]
["CD-1054",null,"Allelujah","Mozart"]
["CD-1055",null,"Clouds","Charles"]
["CD-1056",null,"When I Have Sung My Song","Charles"]
["CD-1057",null,"He’s Gone Away","Shaw"]
["CD-1058",null,"Evening Prayer","Humperdinck"]
["CD-1059",null,"Come Let’s Be Merry","Anonymous"]
["CD-1060",null,"All Through the Night","Old Welsh Air"]
["CD-1061",null,"Birth Wishes for the Christ Child","Pfautsch"]
["CD-1062",null,"Windmills","Yates"]
["CD-1063",null,"I Can’t Be Talkin of Love","Kirk"]
["CD-1064",null,"Winter","Williams-Wimberly"]
["CD-1065",null,"Dorian Windsong","Daniels"]
["CD-1066",null,"Listen to the Piper Play","Daniels"]
["CD-1067",null,"Hope","Yates"]
["CD-1068",null,"A Flower","Yates"]
["CD-1069",null,"Lullaby Song","Reid"]
["CD-1070",null,"Morning","Yates"]
["CD-1071",null,"The Rain","Yates"]
["CD-1072",null,"The Dance","Yates"]
["CD-1073",null,"An Old Person of Dover","Kirk"]
["CD-1074",null,"Deep River","Burleigh"]
["CD-1075",null,"Didn’t My Lord Deliver Daniel","Burleigh"]
["CD-1076",null,"Ev’ry Time I Feel the Spirit","Burleigh"]
["CD-1077",null,"I Want To Be Ready","Burleigh"]
["CD-1078",null,"Joshua Fit De Battle Ob Jericho","Burleigh"]
["CD-1079",null,"Nobody Knows De Trouble I’ve     ","Burleigh"]
["CD-1080",null,"Sometimes I Feel Like a Mother","Burleigh"]
["CD-1081",null,"Steal Away","Burleigh"]
["CD-1082",null,"Simple Gifts","Copeland"]
["CD-1083",null,"Velvet Shoes","Thompson"]
["CD-1084",null,"My Shepherd Will Supple My        ","Thompson"]
["CD-1085",null,"Sweet Little Jesus Boy","MacGimsey"]
["CD-1086",null,"Over the Mountains","Quilter"]
["CD-1087",null,"Across the Western Ocean","Dougherty"]
["CD-1088",null,"Blow Ye Winds","Dougherty"]
["CD-1089",null,"Rio Grande","Dougherty"]
["CD-1090",null,"Linden Lea","Vaughan Williams"]
["CD-1091",null,"Love’s Philosophy","Quilter"]
["CD-1092",null,"Loveliest of Trees","Duke"]
["CD-1093",null,"Prayer of the Norwegian Child","Kountz"]
["CD-1094",null,"Alma del core","Caldara"]
["CD-1095",null,"Non posso disperar","De Luca"]
["CD-1096",null,"Che fiero costume","Legrenza"]
["CD-1097",null,"Pur dicesti, o bocca bella","Lotti"]
["CD-1098",null,"Il mio bel foco","Marcello"]
["CD-1099",null,"Nel cor piu non mi sento","Paisiello"]
["CD-1100",null,"Se Florindo e fedele","Scarlatti, A. "]
["CD-1101",null,"Pieta, Signore!","Stradella"]
["CD-1102",null,"Solveig’s Song","Grieg"]
["CD-1103",null,"I Wonder as I Wander","Niles"]
["CD-1104",null,"Silent Noon","Vaughan Williams"]
["CD-1105",null,"The Vagabond","Vaughan Williams"]
["CD-1106",null,"Money, O!","Head"]
["CD-1107",null,"O Mistress Mine","Quilter"]
["CD-1108",null,"Ching-a-Ring-Chaw","Copeland"]
["CD-1109",null,"Invictus","Huhn"]
["CD-1110",null,"I Love Life","Mana Zucca"]
["CD-1111",null,"The Rovin’ Gambler","Niles"]
["CD-1112",null,"Wayfaring Stranger","Niles"]
["CD-1113",null,"Down Among the Dead Men","English Air"]
["CD-1114",null,"Give a Man a Horse He Can Ride ","O’Hara"]
["CD-1115",null,"Pilgrim’s Song","Tchaikovsky"]
["CD-1116",null,"All Day on the Prairie","Guion"]
["CD-1117",null,"Rolling Down, Rio","German"]
["CD-1118",null,"The Deaf Old Woman","David"]
["CD-1119",null,"Passing By","Purcell"]
["CD-1120",null,"Over the Mountains","Quilter"]
["CD-1121",null,"My Lady Walks in Loveliness","Charles"]
["CD-1122",null,"The Trumpeter","Dix"]
["CD-1123",null,"Oh Rest in the Lord","Mendelssohn"]
["CD-1124",null,"Two Marionettes","Cooke"]
["CD-1125",null,"A Legend","Tchaikowsky"]
["CD-1126",null,"Piping Down the Valleys Wild","Read"]
["CD-1127",null,"Thanks Be to God","Dickson"]
["CD-1128",null,"The Lamb","Chanler"]
["CD-1129",null,"Little Bells Through Dark of Night","Kountz"]
["CD-1130",null,"Daddy and Me","Perkins"]
["CD-1131",null,"Greensleeves","Kern"]
["CD-1132",null,"Danny Boy","Knowles"]
["CD-1133",null,"Sweet Little Boy Jesus","Niles"]
["CD-1134",null,"Pleading","Franz"]
["CD-1135",null,"There is a Ladye","Bury"]
["CD-1136",null,"Lilacs","Rachmaninoff"]
["CD-1137",null,"Slumber Song","Gretchaninoff"]
["CD-1138",null,"The Water is Wide","Zaninelli"]
["CD-1139",null,"A Slumber Song of the Madonna   ","Head"]
["CD-1140",null,"Sapphic Ode","Brahms"]
["CD-1141",null,"O Rest in the Lord (female voice)","Mendelssohn"]
["CD-1142",null,"Nur Wer die Sehnsucht Kennt","Tchaikowsky"]
["CD-1143",null,"Come Thou Dear Redeemer","Franck"]
["CD-1144",null,"Ah, mai non cessate","Donaudy"]
["CD-1145",null,"Chi Vuol La Zingarella","Paisiello"]
["CD-1146",null,"Go Lovely Rose","Quilter"]

{"sheet":"Sheet1","index":1,"n_rows":225,"n_cols":13,"rows_kept":225,"cut":false,"hidden":false,"merged":[[23,1,23,2],[19,1,19,2],[25,1,25,2],[27,1,27,2],[29,1,29,2],[31,1,31,2],[21,1,21,2],[22,1,22,2],[47,1,47,2],[49,1,49,2],[51,1,51,2],[53,1,53,2],[55,1,55,2],[57,1,57,2],[33,1,33,2],[35,1,35,2],[37,1,37,2],[39,1,39,2],[41,1,41,2],[43,1,43,2],[71,1,71,2],[73,1,73,2],[75,1,75,2],[77,1,77,2],[79,1,79,2],[81,1,81,2],[59,1,59,2],[61,1,61,2],[63,1,63,2],[65,1,65,2],[67,1,67,2],[69,1,69,2],[206,0,206,6],[16,0,16,6],[203,0,203,4],[12,0,12,6],[4,0,4,1],[5,0,5,1],[6,0,6,1],[7,0,7,1],[8,0,8,1],[6,2,6,6],[8,2,8,6],[7,2,7,6],[155,1,155,2],[157,1,157,2],[159,1,159,2],[153,1,153,2],[131,1,131,2],[133,1,133,2],[135,1,135,2],[161,1,161,2],[163,1,163,2],[14,0,14,6],[17,1,17,2],[143,1,143,2],[205,0,205,4],[205,5,205,6],[0,0,0,6],[1,0,1,6],[3,0,3,6],[2,0,2,6],[4,2,4,6],[5,2,5,6],[145,1,145,2],[147,1,147,2],[149,1,149,2],[151,1,151,2],[137,1,137,2],[139,1,139,2],[141,1,141,2],[119,1,119,2],[121,1,121,2],[123,1,123,2],[125,1,125,2],[127,1,127,2],[129,1,129,2],[107,1,107,2],[109,1,109,2],[111,1,111,2],[9,2,9,6],[9,0,9,1],[10,0,10,6],[11,0,11,6],[13,0,13,1],[13,2,13,6],[15,0,15,1],[15,4,15,6],[200,0,200,1],[113,1,113,2],[115,1,115,2],[117,1,117,2],[95,1,95,2],[97,1,97,2],[99,1,99,2],[101,1,101,2],[103,1,103,2],[105,1,105,2],[83,1,83,2],[85,1,85,2],[87,1,87,2],[89,1,89,2],[91,1,91,2],[93,1,93,2]]}
["EDUCATIONAL ENTERPRISES RECORDING COMPANY\nPost Office Box 291 \nDeer Park, Texas 77536\nPhone or Fax: (281) 479-6943"]
[]
["Vocal Solo Releases\n\nEducational Enterprises Recording Company has the following compact discs available to help students\nprepare for (U.I.L.) Vocal Solo Contests.  The CDs are $10.00 each and have these features:\nOne song performed on each CD. Spoken words if solo is in a foreign language.\nAccompaniment in high and low keys (when applicable)."]
[]
[]
[]
[]
[]
[]
[]
[]
[]
[]
[]
[]
["Please call 281-479-6943"]
[]
["Song Title","Composer",null,"CD Number","Qty","Price","Total",null,null,null,null,null,"     "]
["Come raggio di sol","Caldara",null,"CD-1001",0,10,{"$f":"F19*E19","v":0}]
["Vittoria, mio core","Carissimi",null,"CD-1002",0,10,0]
["Sebben, crudele","Caldara",null,"CD-1003",0,10,0]
["Gia il sole dal Gange","Scarlatti, A.",null,"CD-1004",0,10,0]
["Danza, danza, fanciulla gentile","Durante",null,"CD-1005",0,10,0]
["Per la Gloria d’adorarvi","Bononcini",null,"CD-1006",0,10,0]
["Amarilli, mia bella","Caccini",null,"CD-1007",0,10,0]
["Vergin, tutto amor","Durante",null,"CD-1008",0,10,0]
["Caro mio ben","Giordani",null,"CD-1009",0,10,0]
["O cessate di piagarmi","Scarlatti, A.",null,"CD-1010",0,10,{"$f":"F28*E28","v":0}]
["Le violette","Scarlatti, A.",null,"CD-1011",0,10,{"$f":"F29*E29","v":0}]
["O del mio dolce ardor","Gluck",null,"CD-1012",0,10,0]
["Se tu m’ami, se sospiri","Pergolesi",null,"CD-1013",0,10,0]
["Tu lo sai","Torelli",null,"CD-1014",0,10,0]
["Where ‘er You Walk","Handel",null,"CD-1015",0,10,0]
["Clouds and Darkness","Dvorak",null,"CD-1016",0,10,0]
["Lord, Thou Art My Refuge","Dvorak",null,"CD-1017",0,10,0]
["God is My Shepherd","Dvorak",null,"CD-1018",0,10,0]
["I Will Sing New Songs","Dvorak",null,"CD-1019",0,10,0]
["Turn Thee To Me","Dvorak",null,"CD-1020",0,10,{"$f":"F38*E38","v":0}]
["Sing Ye a Joyful Song","Dvorak",null,"CD-1021",0,10,{"$f":"F39*E39","v":0}]
["Who is Sylvia","Schubert",null,"CD-1022",0,10,0]
["My Heart Ever Faithful","Bach",null,"CD-1023",0,10,0]
["Pie Jesu (Blessed Jesus)","Faure",null,"CD-1024",0,10,0]
["Calm as the Night","Bohm",null,"CD-1025",0,10,0]
["He Shall Feed His Flock","Handel",null,"CD-1026",0,10,0]
["Beau Soir","Debussy",null,"CD-1027",0,10,0]
["Romance","Debussy",null,"CD-1028",0,10,0]
["Mandoline","Debussy",null,"CD-1029",0,10,0]
["Nachtviolen","Schubert",null,"CD-1030",0,10,{"$f":"F48*E48","v":0}]
["Wohin","Schubert",null,"CD-1031",0,10,{"$f":"F49*E49","v":0}]
["Heidenroslein","Schubert",null,"CD-1032",0,10,0]
["Wie Melodien Zeicht es Mir","Brahms",null,"CD-1033",0,10,0]
["Vergebliches Standchen","Brahms",null,"CD-1034",0,10,0]
["Botschaft","Brahms",null,"CD-1035",0,10,0]
["May Day Carol","Taylor",null,"CD-1036",0,10,0]
["Into the Night","Edwards",null,"CD-1037",0,10,0]
["If No One Ever Marries Me","Lehmann",null,"CD-1038",0,10,0]
["Widmung (Dedication)","Franz",null,"CD-1039",0,10,0]
["Sure On This Shining Night","Barber",null,"CD-1040",0,10,{"$f":"F58*E58","v":0}]
["The Lass From the Low Countree","Niles",null,"CD-1041",0,10,{"$f":"F59*E59","v":0}]
["My Lord, What a Mornin’","Burleigh",null,"CD-1042",0,10,0]
["Swing Low, Sweet Chariot","Burleigh",null,"CD-1043",0,10,0]
["There is a Balm in Gilead","Dawson",null,"CD-1044",0,10,0]
["Ombra Mai Fu","Handel",null,"CD-1045",0,10,0]
["My Lovely Celia","Munro-Wilson",null,"CD-1046",0,10,0]
["Jesus, Jesus, Rest Your Head","Edmunds",null,"CD-1047",0,10,0]
["Black is the Color of My True ","Shaw",null,"CD-1048",0,10,0]
["Panis Angelicus","Franck",null,"CD-1049",0,10,0]
["Du bist die Ruh","Schubert",null,"CD-1050",0,10,{"$f":"F68*E68","v":0}]
["Les Papillons","Chausson",null,"CD-1051",0,10,{"$f":"F69*E69","v":0}]
["The Lotus Flower (Die Lotosblume)   ","Schumann",null,"CD-1052",0,10,0]
["Widmung","Schumann",null,"CD-1053",0,10,0]
["Allelujah","Mozart",null,"CD-1054",0,10,0]
["Clouds","Charles",null,"CD-1055",0,10,0]
["When I Have Sung My Song","Charles",null,"CD-1056",0,10,0]
["He’s Gone Away","Shaw",null,"CD-1057",0,10,0]
["Evening Prayer","Humperdinck",null,"CD-1058",0,10,0]
["Come Let’s Be Merry","Anonymous",null,"CD-1059",0,10,0]
["All Through the Night","Old Welsh Air",null,"CD-1060",0,10,{"$f":"F78*E78","v":0}]
["Birth Wishes for the Christ Child","Pfautsch",null,"CD-1061",0,10,{"$f":"F79*E79","v":0}]
["Windmills","Yates",null,"CD-1062",0,10,0]
["I Can’t Be Talkin of Love","Kirk",null,"CD-1063",0,10,0]
["Winter","Williams-Wimberly",null,"CD-1064",0,10,0]
["Dorian Windsong","Daniels",null,"CD-1065",0,10,0]
["Listen to the Piper Play","Daniels",null,"CD-1066",0,10,0]
["Hope","Yates",null,"CD-1067",0,10,0]
["A Flower","Yates",null,"CD-1068",0,10,0]
["Lullaby Song","Reid",null,"CD-1069",0,10,0]
["Morning","Yates",null,"CD-1070",0,10,{"$f":"F88*E88","v":0}]
["The Rain","Yates",null,"CD-1071",0,10,{"$f":"F89*E89","v":0}]
["The Dance","Yates",null,"CD-1072",0,10,0]
["An Old Person of Dover","Kirk",null,"CD-1073",0,10,0]
["Deep River","Burleigh",null,"CD-1074",0,10,0]
["Didn’t My Lord Deliver Daniel","Burleigh",null,"CD-1075",0,10,0]
["Ev’ry Time I Feel the Spirit","Burleigh",null,"CD-1076",0,10,0]
["I Want To Be Ready","Burleigh",null,"CD-1077",0,10,0]
["Joshua Fit De Battle Ob Jericho","Burleigh",null,"CD-1078",0,10,0]
["Nobody Knows De Trouble I’ve     ","Burleigh",null,"CD-1079",0,10,0]
["Sometimes I Feel Like a Mother","Burleigh",null,"CD-1080",0,10,{"$f":"F98*E98","v":0}]
["Steal Away","Burleigh",null,"CD-1081",0,10,{"$f":"F99*E99","v":0}]
["Simple Gifts","Copeland",null,"CD-1082",0,10,0]
["Velvet Shoes","Thompson",null,"CD-1083",0,10,0]
["My Shepherd Will Supple My        ","Thompson",null,"CD-1084",0,10,0]
["Sweet Little Jesus Boy","MacGimsey",null,"CD-1085",0,10,0]
["Over the Mountains","Quilter",null,"CD-1086",0,10,0]
["Across the Western Ocean","Dougherty",null,"CD-1087",0,10,0]
["Blow Ye Winds","Dougherty",null,"CD-1088",0,10,0]
["Rio Grande","Dougherty",null,"CD-1089",0,10,0]
["Linden Lea","Vaughan Williams",null,"CD-1090",0,10,{"$f":"F108*E108","v":0}]
["Love’s Philosophy","Quilter",null,"CD-1091",0,10,{"$f":"F109*E109","v":0}]
["Loveliest of Trees","Duke",null,"CD-1092",0,10,0]
["Prayer of the Norwegian Child","Kountz",null,"CD-1093",0,10,0]
["Alma del core","Caldara",null,"CD-1094",0,10,0]
["Non posso disperar","De Luca",null,"CD-1095",0,10,0]
["Che fiero costume","Legrenza",null,"CD-1096",0,10,0]
["Pur dicesti, o bocca bella","Lotti",null,"CD-1097",0,10,0]
["Il mio bel foco","Marcello",null,"CD-1098",0,10,0]
["Nel cor piu non mi sento","Paisiello",null,"CD-1099",0,10,0]
["Se Florindo e fedele","Scarlatti, A. ",null,"CD-1100",0,10,{"$f":"F118*E118","v":0}]
["Pieta, Signore!","Stradella",null,"CD-1101",0,10,{"$f":"F119*E119","v":0}]
["Solveig’s Song","Grieg",null,"CD-1102",0,10,0]
["I Wonder as I Wander","Niles",null,"CD-1103",0,10,0]
["Silent Noon","Vaughan Williams",null,"CD-1104",0,10,0]
["The Vagabond","Vaughan Williams",null,"CD-1105",0,10,0]
["Money, O!","Head",null,"CD-1106",0,10,0]
["O Mistress Mine","Quilter",null,"CD-1107",0,10,0]
["Ching-a-Ring-Chaw","Copeland",null,"CD-1108",0,10,0]
["Invictus","Huhn",null,"CD-1109",0,10,0]
["I Love Life","Mana Zucca",null,"CD-1110",0,10,{"$f":"F128*E128","v":0}]
["The Rovin’ Gambler","Niles",null,"CD-1111",0,10,{"$f":"F129*E129","v":0}]
["Wayfaring Stranger","Niles",null,"CD-1112",0,10,0]
["Down Among the Dead Men","English Air",null,"CD-1113",0,10,0]
["Give a Man a Horse He Can Ride ","O’Hara",null,"CD-1114",0,10,0]
["Pilgrim’s Song","Tchaikovsky",null,"CD-1115",0,10,0]
["All Day on the Prairie","Guion",null,"CD-1116",0,10,0]
["Rolling Down, Rio","German",null,"CD-1117",0,10,0]
["The Deaf Old Woman","David",null,"CD-1118",0,10,0]
["Passing By","Purcell",null,"CD-1119",0,10,0]
["Over the Mountains","Quilter",null,"CD-1120",0,10,{"$f":"F138*E138","v":0}]
["My Lady Walks in Loveliness","Charles",null,"CD-1121",0,10,{"$f":"F139*E139","v":0}]
["The Trumpeter","Dix",null,"CD-1122",0,10,0]
["Oh Rest in the Lord","Mendelssohn",null,"CD-1123",0,10,0]
["Two Marionettes","Cooke",null,"CD-1124",0,10,0]
["A Legend","Tchaikowsky",null,"CD-1125",0,10,0]
["Piping Down the Valleys Wild","Read",null,"CD-1126",0,10,0]
["Thanks Be to God","Dickson",null,"CD-1127",0,10,0]
["The Lamb","Chanler",null,"CD-1128",0,10,0]
["Little Bells Through Dark of Night","Kountz",null,"CD-1129",0,10,0]
["Daddy and Me","Perkins",null,"CD-1130",0,10,{"$f":"F148*E148","v":0}]
["Greensleeves","Kern",null,"CD-1131",0,10,{"$f":"F149*E149","v":0}]
["Danny Boy","Knowles",null,"CD-1132",0,10,0]
["Sweet Little Boy Jesus","Niles",null,"CD-1133",0,10,0]
["Pleading","Franz",null,"CD-1134",0,10,0]
["There is a Ladye","Bury",null,"CD-1135",0,10,0]
["Lilacs","Rachmaninoff",null,"CD-1136",0,10,0]
["Slumber Song","Gretchaninoff",null,"CD-1137",0,10,0]
["The Water is Wide","Zaninelli",null,"CD-1138",0,10,0]
["A Slumber Song of the Madonna   ","Head",null,"CD-1139",0,10,0]
["Sapphic Ode","Brahms",null,"CD-1140",0,10,{"$f":"F158*E158","v":0}]
["O Rest in the Lord (female voice)","Mendelssohn",null,"CD-1141",0,10,{"$f":"F159*E159","v":0}]
["Nur Wer die Sehnsucht Kennt","Tchaikowsky",null,"CD-1142",0,10,0]
["Come Thou Dear Redeemer","Franck",null,"CD-1143",0,10,0]
["Ah, mai non cessate","Donaudy",null,"CD-1144",0,10,0]
["Chi Vuol La Zingarella","Paisiello",null,"CD-1145",0,10,0]
["Go Lovely Rose","Quilter",null,"CD-1146",0,10,0]
["American Lullaby","Rich",null,"CD-1147",0,10,0]
["Bel piacere","Handel",null,"CD-1148",0,10,0]
["Cross the Wide Missouri","American folk song",null,"CD-1149",0,10,0]
["Heavenly Grass","Bowles",null,"CD-1150",0,10,0]
["Non posso vivere","Carissimi",null,"CD-1151",0,10,0]
["Quella fiamma che m'accende","Marcello",null,"CD-1152",0,10,0]
["Ride On, King Jesus","Traditional",null,"CD-1153",0,10,0]
["Spirate pur spirate","Donaudy",null,"CD-1154",0,10,0]
["Star Vicino","Anonymous",null,"CD-1155",0,10,0]
["The Green Dog","Kingsley",null,"CD-1156",0,10,0]
["To The Sky","Strommen",null,"CD-1157",0,10,{"$f":"F175*E175","v":0}]
["Liza Jane","Althouse",null,"CD-1158",0,10,0]
["Poor Wayfaring Stranger","Althouse",null,"CD-1159",0,10,0]
["Still wie die Nacht","Bohm",null,"CD-1160",0,10,0]
["Aprés Un Rêve","Fauré",null,"CD-1161",0,10,0]
["Down By The Sally Gardens","Hughes",null,"CD-1162",0,10,0]
["The Sandman","LaForge",null,"CD-1163",0,10,0]
["Lasciatemi morire","Monteverdi",null,"CD-1164",0,10,0]
["Nina","Pergolesi",null,"CD-1165",0,10,0]
["I'm Nobody","Persichetti",null,"CD-1166",0,10,0]
["I Attempt from Love's Sickness","Purcell",null,"CD-1167",0,10,0]
["Brother Will, Brother John","Sacco",null,"CD-1168",0,10,{"$f":"F186*E186","v":0}]
["She's Like The Swallow","Strommen",null,"CD-1169",0,10,0]
["Golden Slumbers","Vincent",null,"CD-1170",0,10,{"$f":"F188*E188","v":0}]
["My Little Heart","Wecherlein",null,"CD-1171",0,10,0]
["Standchen","Brahms",null,"CD-1172",0,10,0]
["How Lovely Are The Dwellings","Liddle",null,"CD-1173",0,10,0]
["I Have Twelve Oxen","Ireland",null,"CD-1174",0,10,0]
["Nymphs and Shepherds","Purcell",null,"CD-1175",0,10,0]
["Lullaby","Menotti",null,"CD-1176",0,10,{"$f":"F194*E194","v":0}]
["A Little Chine Figure","Leoni",null,"CD-1177",0,10,0]
["Homeward Bound","Althouse",null,"CD-1178",0,10,0]
["The Goodness of God","Bach",null,"CD-1179",0,10,0]
["In The Country","Haydn",null,"CD-1180",0,10,0]
["I Love All Graceful Things","Thiman",null,"CD-1181",0,10,0]
[null,null,null,false,{"$f":"SUM(E19:E199)","v":0},"Order Total",{"$f":"SUM(G18:G199)","v":0}]
[null,null,null,null," ","Tax (8.25%)",{"$f":"IF(D200,0,G200*0.0825)","v":0}]
["Shipping cost: $8.75 for one CD; 50¢ for each additional",null,null,null,null,"Sub-Total:",{"$f":"SUM(G200:G201)","v":0}]
["CD; $12.50 maximum shipping charge.",null,null,null,null,"Shipping",{"$f":"IF(E200>=13,12.5,VLOOKUP(B217,D216:E225,2,TRUE))","v":0}]
["Check or PO Amount:  ",null,null,null,null,"Grand Total",{"$f":"SUM(G202:G203)","v":0}]
[]
[]
[]
["Ordering instructions: Fill out the shipping, billing, telephone numbers, and purchase order information.  Select"]
["the DVD or VHS you wish to purchase by entering the quantity of each you wish to purchase. Check the box if you"]
["are Tax Exempt. If you are paying by PO please email the completed form to:"]
["sales@eercmusic.com"]
["If paying by check or money order please mail the completed form with your payment to"]
["Educational Enterprises Recording Company, PO Box 291, Deer Park, Texas 77536"]
[]
[]
["set variable for shipping, last 2 digits",{"$f":"IF(E200>9,E200,CONCATENATE(0,E200))","v":"00"},null,"100",0]
[null,{"$f":"(CONCATENATE(1,B216))","v":"100"},null,"101",8.75]
[null,null,null,"102",9.25]
[null,null,null,"103",9.75]
[null,null,null,"104",10.25]
[null,null,null,"105",10.75]
[null,null,null,"106",11.25]
[null,null,null,"107",11.75]
[null,null,null,"108",12.25]
[null,null,null,"109",12.5]